[Event "Late-Titled-Tuesday-Blitz-June-04-2024"]
[Site "Chess.com"]
[Date "2024.06.04"]
[Round "8"]
[White "Sanan_Sjugirov"]
[Black "ENajer77"]
[Result "1-0"]
[WhiteElo "2951"]
[BlackElo "2858"]
[TimeControl "180+1"]
[EndTime "15:27:40 PDT"]
[Termination "Sanan_Sjugirov won on time"]

1. e4 {[%clk 0:02:53.4]} 1... e5 {[%clk 0:02:56.3]} 2. Nf3 {[%clk 0:02:52.4]}
2... Nc6 {[%clk 0:02:56.3]} 3. Bc4 {[%clk 0:02:52.5]} 3... Bc5 {[%clk
0:02:53.6]} 4. d3 {[%clk 0:02:52]} 4... Nf6 {[%clk 0:02:52.6]} 5. a4 {[%clk
0:02:51.2]} 5... d6 {[%clk 0:02:46]} 6. O-O {[%clk 0:02:50.1]} 6... O-O {[%clk
0:02:41.4]} 7. c3 {[%clk 0:02:43.5]} 7... a5 {[%clk 0:02:40.1]} 8. Be3 {[%clk
0:02:23.3]} 8... Bxe3 {[%clk 0:02:37.5]} 9. fxe3 {[%clk 0:02:24.2]} 9... Ne7
{[%clk 0:02:35.2]} 10. Nbd2 {[%clk 0:02:22.2]} 10... Ng6 {[%clk 0:02:34.9]} 11.
Qe1 {[%clk 0:02:16.8]} 11... c6 {[%clk 0:02:34.6]} 12. h3 {[%clk 0:01:51.9]}
12... d5 {[%clk 0:02:33.2]} 13. exd5 {[%clk 0:01:52.2]} 13... cxd5 {[%clk
0:02:33.7]} 14. Bb5 {[%clk 0:01:51.4]} 14... Bd7 {[%clk 0:02:18.7]} 15. Bxd7
{[%clk 0:01:42.2]} 15... Qxd7 {[%clk 0:02:18.2]} 16. Nh4 {[%clk 0:01:39.7]}
16... Ra6 {[%clk 0:02:07.3]} 17. Nxg6 {[%clk 0:01:33.3]} 17... hxg6 {[%clk
0:02:03.1]} 18. Qh4 {[%clk 0:01:29.3]} 18... Re8 {[%clk 0:01:56.9]} 19. Rf2
{[%clk 0:01:24.4]} 19... Rb6 {[%clk 0:01:50.9]} 20. Rb1 {[%clk 0:01:09.4]} 20...
e4 {[%clk 0:01:41.8]} 21. dxe4 {[%clk 0:00:53.5]} 21... Nxe4 {[%clk 0:01:41]}
22. Nxe4 {[%clk 0:00:52.2]} 22... Rxe4 {[%clk 0:01:38.5]} 23. Qg5 {[%clk
0:00:49.9]} 23... Rbe6 {[%clk 0:01:30.7]} 24. Rd1 {[%clk 0:00:48.2]} 24... R6e5
{[%clk 0:01:28.4]} 25. Qg3 {[%clk 0:00:45.8]} 25... Rxe3 {[%clk 0:01:26.7]} 26.
Qf4 {[%clk 0:00:45.9]} 26... R3e4 {[%clk 0:01:20.9]} 27. Qf3 {[%clk 0:00:44.7]}
27... g5 {[%clk 0:01:07]} 28. Rdf1 {[%clk 0:00:38.8]} 28... f6 {[%clk
0:00:52.5]} 29. Qd1 {[%clk 0:00:34.2]} 29... Qxa4 {[%clk 0:00:49.4]} 30. Qd3
{[%clk 0:00:28.4]} 30... Qc4 {[%clk 0:00:47.5]} 31. Qf3 {[%clk 0:00:28.1]} 31...
a4 {[%clk 0:00:31.5]} 32. Qh5 {[%clk 0:00:26.9]} 32... Qc5 {[%clk 0:00:25.3]}
33. Kh2 {[%clk 0:00:23.6]} 33... Qd6 {[%clk 0:00:24.7]} 34. Kg1 {[%clk
0:00:23.6]} 34... Qc5 {[%clk 0:00:22.8]} 35. Kh2 {[%clk 0:00:23.3]} 35... Qc7
{[%clk 0:00:23.3]} 36. Kg1 {[%clk 0:00:23.3]} 36... Qf7 {[%clk 0:00:23.9]} 37.
Qd1 {[%clk 0:00:22.4]} 37... b5 {[%clk 0:00:23]} 38. Qd3 {[%clk 0:00:21.8]}
38... Qe8 {[%clk 0:00:22.1]} 39. Qd1 {[%clk 0:00:20.9]} 39... Qc6 {[%clk
0:00:21.6]} 40. Qh5 {[%clk 0:00:20.4]} 40... Qc5 {[%clk 0:00:20]} 41. Kh2 {[%clk
0:00:20.2]} 41... Qc7 {[%clk 0:00:20.6]} 42. Kg1 {[%clk 0:00:20.4]} 42... Qf7
{[%clk 0:00:21.3]} 43. Qd1 {[%clk 0:00:20.1]} 43... Qe6 {[%clk 0:00:20.3]} 44.
Qh5 {[%clk 0:00:19.7]} 44... Re1 {[%clk 0:00:16]} 45. Qg6 {[%clk 0:00:08.3]}
45... Rxf1+ {[%clk 0:00:13.4]} 46. Rxf1 {[%clk 0:00:09.2]} 46... Qf7 {[%clk
0:00:11]} 47. Qd3 {[%clk 0:00:08.8]} 47... Qa7+ {[%clk 0:00:11.1]} 48. Kh1
{[%clk 0:00:08]} 48... Qc5 {[%clk 0:00:11.7]} 49. Qg6 {[%clk 0:00:07.3]} 49...
Qc4 {[%clk 0:00:10.7]} 50. Rxf6 {[%clk 0:00:05.8]} 50... Re1+ {[%clk 0:00:09.7]}
51. Kh2 {[%clk 0:00:06.3]} 51... Qc7+ {[%clk 0:00:09.8]} 52. g3 {[%clk
0:00:06.8]} 52... Re2+ {[%clk 0:00:08.8]} 53. Kh1 {[%clk 0:00:06.9]} 53... Qe7
{[%clk 0:00:05.2]} 54. Rf1 {[%clk 0:00:04.3]} 54... Qe4+ {[%clk 0:00:04.7]} 55.
Qxe4 {[%clk 0:00:04.3]} 55... dxe4 {[%clk 0:00:05.4]} 56. Rb1 {[%clk 0:00:02]}
56... Kf7 {[%clk 0:00:02.9]} 57. Kg1 {[%clk 0:00:02.1]} 57... Ke6 {[%clk
0:00:03.1]} 58. Kf1 {[%clk 0:00:01.6]} 58... Rh2 {[%clk 0:00:03]} 59. Kg1 {[%clk
0:00:02]} 59... Rxh3 {[%clk 0:00:03]} 60. Kg2 {[%clk 0:00:02.4]} 60... Rh8
{[%clk 0:00:03.2]} 61. Rd1 {[%clk 0:00:02.2]} 61... Rc8 {[%clk 0:00:01.2]} 62.
Rd4 {[%clk 0:00:02.3]} 62... Rc4 {[%clk 0:00:01.2]} 63. Rd8 {[%clk 0:00:03]} 1-0

[Event "Late-Titled-Tuesday-Blitz-June-04-2024"]
[Site "Chess.com"]
[Date "2024.06.04"]
[Round "8"]
[White "norwaytoadog"]
[Black "cristiano78"]
[Result "1-0"]
[WhiteElo "2339"]
[BlackElo "2231"]
[TimeControl "180+1"]
[EndTime "15:27:45 PDT"]
[Termination "norwaytoadog won on time"]

1. e4 {[%clk 0:02:59.8]} 1... c5 {[%clk 0:02:59.8]} 2. Nf3 {[%clk 0:02:59.9]}
2... d6 {[%clk 0:03:00.1]} 3. Bb5+ {[%clk 0:03:00.2]} 3... Bd7 {[%clk
0:02:59.5]} 4. Bxd7+ {[%clk 0:03:00.2]} 4... Qxd7 {[%clk 0:02:59.7]} 5. O-O
{[%clk 0:03:00.3]} 5... Nc6 {[%clk 0:02:59.2]} 6. Qe2 {[%clk 0:03:00.8]} 6... e5
{[%clk 0:02:59.4]} 7. c3 {[%clk 0:02:58.8]} 7... Nf6 {[%clk 0:02:56.9]} 8. Rd1
{[%clk 0:02:59.1]} 8... Qg4 {[%clk 0:02:48.2]} 9. d3 {[%clk 0:02:57.9]} 9... Be7
{[%clk 0:02:46.8]} 10. Na3 {[%clk 0:02:50.6]} 10... a6 {[%clk 0:02:45]} 11. Nc4
{[%clk 0:02:48]} 11... O-O {[%clk 0:02:41.1]} 12. Bg5 {[%clk 0:02:44.4]} 12...
h6 {[%clk 0:02:35.4]} 13. Ne3 {[%clk 0:02:40.3]} 13... Qh5 {[%clk 0:02:31.4]}
14. Bxf6 {[%clk 0:02:39.5]} 14... Bxf6 {[%clk 0:02:31.1]} 15. Nd5 {[%clk
0:02:39.9]} 15... Qg6 {[%clk 0:02:27.5]} 16. Nd2 {[%clk 0:02:24.3]} 16... Ne7
{[%clk 0:02:26]} 17. Nb6 {[%clk 0:02:07.9]} 17... Rad8 {[%clk 0:01:47.9]} 18.
Ndc4 {[%clk 0:01:50.5]} 18... d5 {[%clk 0:01:42]} 19. exd5 {[%clk 0:01:08.7]}
19... Nxd5 {[%clk 0:01:41.1]} 20. Nxd5 {[%clk 0:01:07.9]} 20... Rxd5 {[%clk
0:01:40.3]} 21. Ne3 {[%clk 0:01:05.3]} 21... Rd7 {[%clk 0:01:37.7]} 22. c4
{[%clk 0:01:01.3]} 22... Rfd8 {[%clk 0:01:36.9]} 23. Nd5 {[%clk 0:01:00]} 23...
b5 {[%clk 0:01:29.4]} 24. Rac1 {[%clk 0:00:45.7]} 24... b4 {[%clk 0:01:20.1]}
25. Qe4 {[%clk 0:00:40.9]} 25... Rd6 {[%clk 0:01:14.7]} 26. Qxg6 {[%clk
0:00:35.9]} 26... fxg6 {[%clk 0:01:14.2]} 27. Kf1 {[%clk 0:00:36.1]} 27... Kf7
{[%clk 0:01:13.4]} 28. Rc2 {[%clk 0:00:33.3]} 28... Ke6 {[%clk 0:00:56.2]} 29.
Ke2 {[%clk 0:00:31.3]} 29... h5 {[%clk 0:00:53.3]} 30. Kf3 {[%clk 0:00:31]}
30... Rxd5 {[%clk 0:00:48.5]} 31. cxd5+ {[%clk 0:00:30.7]} 31... Rxd5 {[%clk
0:00:48.4]} 32. Rc4 {[%clk 0:00:25.6]} 32... g5 {[%clk 0:00:47.5]} 33. Re4
{[%clk 0:00:24.6]} 33... g4+ {[%clk 0:00:46.8]} 34. Ke2 {[%clk 0:00:24.4]} 34...
Kf5 {[%clk 0:00:36.4]} 35. Rc1 {[%clk 0:00:24.3]} 35... Be7 {[%clk 0:00:36.3]}
36. Rh1 {[%clk 0:00:22.9]} 36... h4 {[%clk 0:00:35.4]} 37. f3 {[%clk 0:00:21.8]}
37... gxf3+ {[%clk 0:00:32.9]} 38. Kxf3 {[%clk 0:00:20.3]} 38... g5 {[%clk
0:00:32.7]} 39. Ke2 {[%clk 0:00:20.1]} 39... Ke6 {[%clk 0:00:22.7]} 40. Rf1
{[%clk 0:00:19.7]} 40... a5 {[%clk 0:00:21.9]} 41. g3 {[%clk 0:00:18.5]} 41...
hxg3 {[%clk 0:00:21.3]} 42. hxg3 {[%clk 0:00:18.7]} 42... a4 {[%clk 0:00:20.3]}
43. Rh1 {[%clk 0:00:17.8]} 43... Bf6 {[%clk 0:00:18.5]} 44. Rh6 {[%clk 0:00:17]}
44... Kf7 {[%clk 0:00:13]} 45. Re3 {[%clk 0:00:15]} 45... Kg7 {[%clk 0:00:12.5]}
46. Rh5 {[%clk 0:00:14.8]} 46... Kg6 {[%clk 0:00:12.8]} 47. g4 {[%clk
0:00:15.3]} 47... Rd4 {[%clk 0:00:11.6]} 48. Kf3 {[%clk 0:00:14.7]} 48... Rf4+
{[%clk 0:00:08.9]} 49. Kg3 {[%clk 0:00:14.8]} 49... c4 {[%clk 0:00:09.1]} 50.
dxc4 {[%clk 0:00:11.1]} 50... Rxc4 {[%clk 0:00:08.9]} 51. Rh2 {[%clk 0:00:10.6]}
51... e4 {[%clk 0:00:06.5]} 52. Rd2 {[%clk 0:00:09.9]} 52... Be5+ {[%clk
0:00:06.2]} 53. Kg2 {[%clk 0:00:10.2]} 53... Bf4 {[%clk 0:00:06.6]} 54. Ree2
{[%clk 0:00:06.4]} 54... Bxd2 {[%clk 0:00:06.6]} 55. Rxd2 {[%clk 0:00:07.1]}
55... Kf6 {[%clk 0:00:07]} 56. Kf2 {[%clk 0:00:07]} 56... Ke5 {[%clk 0:00:06.5]}
57. Ke3 {[%clk 0:00:07.3]} 57... Rc1 {[%clk 0:00:02.4]} 58. b3 {[%clk
0:00:06.1]} 58... axb3 {[%clk 0:00:01.9]} 59. axb3 {[%clk 0:00:06.2]} 1-0

[Event "Late-Titled-Tuesday-Blitz-June-04-2024"]
[Site "Chess.com"]
[Date "2024.06.04"]
[Round "8"]
[White "FXDon77"]
[Black "Evan_Attaker"]
[Result "1-0"]
[WhiteElo "2873"]
[BlackElo "2700"]
[TimeControl "180+1"]
[EndTime "15:27:46 PDT"]
[Termination "FXDon77 won by resignation"]

1. e4 {[%clk 0:03:00.9]} 1... d6 {[%clk 0:02:59.7]} 2. d4 {[%clk 0:03:00.2]}
2... Nf6 {[%clk 0:02:58.9]} 3. Nc3 {[%clk 0:03:00.6]} 3... g6 {[%clk 0:02:58.7]}
4. f4 {[%clk 0:03:00.6]} 4... Bg7 {[%clk 0:02:58.3]} 5. Bd3 {[%clk 0:03:00.6]}
5... O-O {[%clk 0:02:58.4]} 6. Nf3 {[%clk 0:03:00.2]} 6... Na6 {[%clk
0:02:58.3]} 7. O-O {[%clk 0:02:58.4]} 7... c5 {[%clk 0:02:58.5]} 8. d5 {[%clk
0:02:57.8]} 8... Nc7 {[%clk 0:02:57.5]} 9. a4 {[%clk 0:02:52.7]} 9... a6 {[%clk
0:02:56.3]} 10. h3 {[%clk 0:02:49]} 10... Bd7 {[%clk 0:02:54]} 11. a5 {[%clk
0:02:45.4]} 11... Nb5 {[%clk 0:02:52.8]} 12. Re1 {[%clk 0:02:20.9]} 12... Rc8
{[%clk 0:02:48.6]} 13. Bc4 {[%clk 0:02:17.4]} 13... Nxc3 {[%clk 0:02:46.7]} 14.
bxc3 {[%clk 0:02:17]} 14... Bb5 {[%clk 0:02:46.4]} 15. Qd3 {[%clk 0:02:14.9]}
15... Bxc4 {[%clk 0:02:43.7]} 16. Qxc4 {[%clk 0:02:15.8]} 16... Rb8 {[%clk
0:02:37.8]} 17. Be3 {[%clk 0:02:07.1]} 17... b5 {[%clk 0:02:30.3]} 18. axb6
{[%clk 0:02:06.6]} 18... Rxb6 {[%clk 0:02:29.1]} 19. Bf2 {[%clk 0:02:01.7]}
19... Qa8 {[%clk 0:02:08]} 20. Ra5 {[%clk 0:01:55.5]} 20... Qb7 {[%clk
0:02:00.5]} 21. Kh2 {[%clk 0:01:54.4]} 21... Re8 {[%clk 0:01:48.8]} 22. Rea1
{[%clk 0:01:53]} 22... e6 {[%clk 0:01:47.4]} 23. dxe6 {[%clk 0:01:50]} 23...
Rxe6 {[%clk 0:01:48.3]} 24. e5 {[%clk 0:01:44.3]} 24... Ne4 {[%clk 0:01:47.9]}
25. Bh4 {[%clk 0:01:34.9]} 25... dxe5 {[%clk 0:01:43]} 26. fxe5 {[%clk 0:01:35]}
26... h6 {[%clk 0:01:11.2]} 27. Re1 {[%clk 0:01:24.8]} 27... Bxe5+ {[%clk
0:01:09.3]} 28. Nxe5 {[%clk 0:01:15.5]} 28... Rxe5 {[%clk 0:01:10.2]} 29. Ra4
{[%clk 0:01:09]} 29... Rbe6 {[%clk 0:01:07.3]} 30. Qd3 {[%clk 0:01:08.9]} 30...
g5 {[%clk 0:00:48.9]} 31. Bg3 {[%clk 0:01:03.7]} 31... Nxg3 {[%clk 0:00:23.7]}
32. Rxe5 {[%clk 0:01:03.7]} 32... Rxe5 {[%clk 0:00:24.6]} 33. Qxg3 {[%clk
0:01:04.2]} 33... Re6 {[%clk 0:00:25.1]} 34. h4 {[%clk 0:00:59.4]} 34... Qd5
{[%clk 0:00:25.2]} 35. Rg4 {[%clk 0:00:50.3]} 35... Rg6 {[%clk 0:00:20.9]} 36.
c4 {[%clk 0:00:46.2]} 36... Qf5 {[%clk 0:00:20.3]} 37. hxg5 {[%clk 0:00:43.8]}
37... Rxg5 {[%clk 0:00:20.6]} 38. Qb8+ {[%clk 0:00:43.3]} 38... Kg7 {[%clk
0:00:20.5]} 39. Rf4 {[%clk 0:00:39.8]} 39... Qe5 {[%clk 0:00:19.9]} 40. Qxe5+
{[%clk 0:00:36.9]} 40... Rxe5 {[%clk 0:00:20.8]} 41. Rf3 {[%clk 0:00:35.5]}
41... Kg6 {[%clk 0:00:19.8]} 42. Ra3 {[%clk 0:00:32.3]} 42... Re2 {[%clk
0:00:19.7]} 43. Rxa6+ {[%clk 0:00:29.6]} 43... f6 {[%clk 0:00:14.5]} 44. Rc6
{[%clk 0:00:29.7]} 44... Re5 {[%clk 0:00:11.3]} 45. Kg3 {[%clk 0:00:27.7]} 45...
Kg5 {[%clk 0:00:11.8]} 46. Kf3 {[%clk 0:00:25.7]} 46... h5 {[%clk 0:00:12.3]}
47. Rc8 {[%clk 0:00:26]} 47... Rf5+ {[%clk 0:00:09.7]} 48. Ke3 {[%clk
0:00:23.9]} 48... Re5+ {[%clk 0:00:10.1]} 49. Kf3 {[%clk 0:00:23.7]} 49... Rf5+
{[%clk 0:00:09.5]} 50. Ke3 {[%clk 0:00:21.4]} 50... Kh4 {[%clk 0:00:08.8]} 51.
Rg8 {[%clk 0:00:19.3]} 51... Rg5 {[%clk 0:00:07.1]} 52. Rf8 {[%clk 0:00:19.6]}
52... Rxg2 {[%clk 0:00:06.4]} 53. Rxf6 {[%clk 0:00:19.7]} 53... Rxc2 {[%clk
0:00:07]} 54. Kd3 {[%clk 0:00:18]} 54... Rg2 {[%clk 0:00:06.2]} 55. Rf5 {[%clk
0:00:17.2]} 55... Rg5 {[%clk 0:00:06.5]} 56. Rf1 {[%clk 0:00:08.3]} 56... Kh3
{[%clk 0:00:06.6]} 57. Ke4 {[%clk 0:00:07.6]} 57... h4 {[%clk 0:00:06.7]} 58.
Rh1+ {[%clk 0:00:04.6]} 58... Kg3 {[%clk 0:00:06.9]} 59. Rg1+ {[%clk 0:00:05]}
59... Kf2 {[%clk 0:00:05.5]} 60. Rxg5 {[%clk 0:00:05.6]} 60... h3 {[%clk
0:00:06.4]} 61. Rxc5 {[%clk 0:00:04.5]} 1-0

[Event "Late-Titled-Tuesday-Blitz-June-04-2024"]
[Site "Chess.com"]
[Date "2024.06.04"]
[Round "8"]
[White "mbojan"]
[Black "jk13"]
[Result "0-1"]
[WhiteElo "2838"]
[BlackElo "2686"]
[TimeControl "180+1"]
[EndTime "15:27:50 PDT"]
[Termination "jk13 won by resignation"]

1. a3 {[%clk 0:02:53.7]} 1... d5 {[%clk 0:02:57]} 2. h3 {[%clk 0:02:52.4]} 2...
Nf6 {[%clk 0:02:57.9]} 3. e3 {[%clk 0:02:50.6]} 3... e5 {[%clk 0:02:56.7]} 4. d4
{[%clk 0:02:50.7]} 4... Nbd7 {[%clk 0:02:55.2]} 5. c4 {[%clk 0:02:50.4]} 5...
exd4 {[%clk 0:02:51.4]} 6. exd4 {[%clk 0:02:50.1]} 6... Be7 {[%clk 0:02:48.1]}
7. Nc3 {[%clk 0:02:50]} 7... O-O {[%clk 0:02:47]} 8. Nf3 {[%clk 0:02:49.6]} 8...
Re8 {[%clk 0:02:46.9]} 9. cxd5 {[%clk 0:02:48.2]} 9... Bxa3+ {[%clk 0:02:31.7]}
10. Be2 {[%clk 0:02:48.3]} 10... Bb4 {[%clk 0:02:32.4]} 11. O-O {[%clk
0:02:48.3]} 11... Nb6 {[%clk 0:02:32.6]} 12. Bg5 {[%clk 0:02:43.2]} 12... h6
{[%clk 0:02:32.4]} 13. Bh4 {[%clk 0:02:41.9]} 13... Be7 {[%clk 0:01:59.3]} 14.
Bb5 {[%clk 0:02:33.9]} 14... Bd7 {[%clk 0:01:57.2]} 15. Bxd7 {[%clk 0:02:32.3]}
15... Nfxd7 {[%clk 0:01:50.6]} 16. Bxe7 {[%clk 0:02:02.5]} 16... Rxe7 {[%clk
0:01:51.5]} 17. d6 {[%clk 0:01:50.3]} 17... cxd6 {[%clk 0:01:52.4]} 18. Nb5
{[%clk 0:01:50.1]} 18... Nc8 {[%clk 0:01:45.5]} 19. Qd3 {[%clk 0:01:32.3]} 19...
Nf6 {[%clk 0:01:42.9]} 20. Nc3 {[%clk 0:01:26.9]} 20... Nb6 {[%clk 0:01:35]} 21.
d5 {[%clk 0:01:24.9]} 21... a6 {[%clk 0:01:30.6]} 22. Nd4 {[%clk 0:01:25.3]}
22... g6 {[%clk 0:01:17.9]} 23. Nb3 {[%clk 0:01:16.1]} 23... Rc8 {[%clk
0:01:11.3]} 24. Na5 {[%clk 0:01:13.4]} 24... Rec7 {[%clk 0:00:49.2]} 25. Rfe1
{[%clk 0:01:10.6]} 25... Nc4 {[%clk 0:00:48.8]} 26. Nxc4 {[%clk 0:00:44.8]}
26... Rxc4 {[%clk 0:00:49.7]} 27. Qf3 {[%clk 0:00:45.4]} 27... Kg7 {[%clk
0:00:47.1]} 28. Re3 {[%clk 0:00:42.4]} 28... Qb6 {[%clk 0:00:34.8]} 29. Re2
{[%clk 0:00:39.6]} 29... R4c7 {[%clk 0:00:28.6]} 30. Rae1 {[%clk 0:00:35.1]}
30... Qb3 {[%clk 0:00:25.8]} 31. Qf4 {[%clk 0:00:19.1]} 31... Qc4 {[%clk
0:00:22.1]} 32. Qxd6 {[%clk 0:00:17.8]} 32... Rd7 {[%clk 0:00:21.2]} 33. Qe5
{[%clk 0:00:18]} 33... Re8 {[%clk 0:00:20]} 34. Qg3 {[%clk 0:00:11.2]} 34...
Rxe2 {[%clk 0:00:19.8]} 35. Rxe2 {[%clk 0:00:12.1]} 35... Nxd5 {[%clk
0:00:17.7]} 36. Qe5+ {[%clk 0:00:12.4]} 36... Nf6 {[%clk 0:00:18.3]} 37. Re3
{[%clk 0:00:08.6]} 37... Qd4 {[%clk 0:00:17.4]} 38. Qxd4 {[%clk 0:00:04.6]}
38... Rxd4 {[%clk 0:00:18.3]} 39. Re7 {[%clk 0:00:04.9]} 39... Rb4 {[%clk
0:00:18.4]} 40. Re2 {[%clk 0:00:03.5]} 40... a5 {[%clk 0:00:16.6]} 41. Kf1
{[%clk 0:00:03.4]} 41... b6 {[%clk 0:00:16]} 42. Ke1 {[%clk 0:00:04]} 42... h5
{[%clk 0:00:15.6]} 43. Kd1 {[%clk 0:00:03.6]} 43... Rd4+ {[%clk 0:00:15.7]} 44.
Kc2 {[%clk 0:00:04]} 44... Nd5 {[%clk 0:00:15.6]} 45. Nb5 {[%clk 0:00:03]} 45...
Rb4 {[%clk 0:00:14.9]} 46. Nd6 {[%clk 0:00:02.4]} 46... Nf4 {[%clk 0:00:14.7]}
47. Re7 {[%clk 0:00:02.3]} 47... Nxg2 {[%clk 0:00:13.4]} 48. Rxf7+ {[%clk
0:00:02.7]} 48... Kg8 {[%clk 0:00:14.1]} 49. Rb7 {[%clk 0:00:02.4]} 49... Nf4
{[%clk 0:00:14.1]} 50. Ne8 {[%clk 0:00:02.2]} 50... Kf8 {[%clk 0:00:13.7]} 51.
Nf6 {[%clk 0:00:02.4]} 51... Nxh3 {[%clk 0:00:13.9]} 52. Rd7 {[%clk 0:00:02.6]}
52... Rf4 {[%clk 0:00:13.1]} 53. Nd5 {[%clk 0:00:01.6]} 53... Rxf2+ {[%clk
0:00:13.1]} 54. Kc3 {[%clk 0:00:02.2]} 54... g5 {[%clk 0:00:12.2]} 55. Nxb6
{[%clk 0:00:02]} 55... g4 {[%clk 0:00:12.8]} 56. Nc4 {[%clk 0:00:01.5]} 56... g3
{[%clk 0:00:13]} 57. Ne3 {[%clk 0:00:01.4]} 57... Rf3 {[%clk 0:00:12.6]} 58. Kd2
{[%clk 0:00:01.4]} 58... g2 {[%clk 0:00:12.3]} 59. Nxg2 {[%clk 0:00:01.4]} 59...
Rf2+ {[%clk 0:00:12.9]} 60. Kc3 {[%clk 0:00:02.1]} 60... Rxg2 {[%clk 0:00:13.8]}
61. Rd5 {[%clk 0:00:02.6]} 61... Nf4 {[%clk 0:00:13.5]} 62. Rf5+ {[%clk
0:00:02.3]} 62... Kg7 {[%clk 0:00:13.7]} 63. Rxf4 {[%clk 0:00:03.2]} 63... Kg6
{[%clk 0:00:13.6]} 64. Ra4 {[%clk 0:00:03.1]} 64... Rg5 {[%clk 0:00:13.9]} 65.
Kd3 {[%clk 0:00:03.4]} 65... Re5 {[%clk 0:00:13.9]} 66. Kd4 {[%clk 0:00:03.2]}
66... Rb5 {[%clk 0:00:13.6]} 67. Ke3 {[%clk 0:00:03.1]} 67... Kg5 {[%clk
0:00:13.5]} 68. Kf3 {[%clk 0:00:03.3]} 68... Rb3+ {[%clk 0:00:13.6]} 69. Kg2
{[%clk 0:00:01.8]} 69... Rxb2+ {[%clk 0:00:13.9]} 70. Kh3 {[%clk 0:00:02.5]}
70... Rb5 {[%clk 0:00:14.7]} 71. Kg3 {[%clk 0:00:02.9]} 71... Rf5 {[%clk
0:00:14.6]} 72. Kh3 {[%clk 0:00:03]} 72... Kf6 {[%clk 0:00:15]} 73. Kg3 {[%clk
0:00:03.3]} 73... Ke6 {[%clk 0:00:15.7]} 74. Kh4 {[%clk 0:00:03.6]} 74... Kd6
{[%clk 0:00:16.3]} 75. Kg3 {[%clk 0:00:04.2]} 75... Kc5 {[%clk 0:00:16.6]} 76.
Ra1 {[%clk 0:00:04.7]} 76... Kb4 {[%clk 0:00:16.7]} 77. Rb1+ {[%clk 0:00:05.2]}
77... Kc3 {[%clk 0:00:17]} 78. Ra1 {[%clk 0:00:05.8]} 78... Kb2 {[%clk
0:00:16.6]} 79. Ra4 {[%clk 0:00:06]} 79... Kb3 {[%clk 0:00:16.9]} 80. Rf4 {[%clk
0:00:06.6]} 80... Rxf4 {[%clk 0:00:16.9]} 81. Kxf4 {[%clk 0:00:06.6]} 81... a4
{[%clk 0:00:17.8]} 0-1

[Event "Late-Titled-Tuesday-Blitz-June-04-2024"]
[Site "Chess.com"]
[Date "2024.06.04"]
[Round "8"]
[White "BabageldiAnnaberdiyev"]
[Black "Rodalquilar"]
[Result "0-1"]
[WhiteElo "2629"]
[BlackElo "2793"]
[TimeControl "180+1"]
[EndTime "15:27:53 PDT"]
[Termination "Rodalquilar won on time"]

1. e4 {[%clk 0:03:00.9]} 1... d5 {[%clk 0:03:00.1]} 2. exd5 {[%clk 0:02:59.9]}
2... Qxd5 {[%clk 0:03:01]} 3. Nc3 {[%clk 0:02:59.8]} 3... Qa5 {[%clk 0:03:01.3]}
4. d4 {[%clk 0:03:00.2]} 4... Nf6 {[%clk 0:03:01.7]} 5. Nf3 {[%clk 0:03:00.1]}
5... Bf5 {[%clk 0:03:02]} 6. Bd2 {[%clk 0:02:59]} 6... e6 {[%clk 0:03:01.6]} 7.
Bc4 {[%clk 0:02:57.5]} 7... Bb4 {[%clk 0:03:01.2]} 8. O-O {[%clk 0:02:55.9]}
8... Nc6 {[%clk 0:03:00.5]} 9. a3 {[%clk 0:02:56]} 9... Bxc3 {[%clk 0:03:00.8]}
10. Bxc3 {[%clk 0:02:56.5]} 10... Qb6 {[%clk 0:03:01.1]} 11. Qe2 {[%clk
0:02:19.9]} 11... O-O {[%clk 0:03:00.4]} 12. Rad1 {[%clk 0:02:17.4]} 12... Rad8
{[%clk 0:03:00.2]} 13. h3 {[%clk 0:02:16.2]} 13... Rfe8 {[%clk 0:02:59.8]} 14.
Bb5 {[%clk 0:02:01.5]} 14... a6 {[%clk 0:02:50.4]} 15. Bxc6 {[%clk 0:02:01.4]}
15... Qxc6 {[%clk 0:02:50.9]} 16. Ne5 {[%clk 0:02:00.9]} 16... Qe4 {[%clk
0:02:33.1]} 17. Qxe4 {[%clk 0:01:52]} 17... Bxe4 {[%clk 0:02:34]} 18. Rc1 {[%clk
0:01:52.1]} 18... h6 {[%clk 0:02:34]} 19. Rfe1 {[%clk 0:01:37.2]} 19... Bf5
{[%clk 0:02:33.5]} 20. f3 {[%clk 0:01:31.9]} 20... h5 {[%clk 0:02:14.6]} 21. b3
{[%clk 0:01:29.3]} 21... h4 {[%clk 0:02:12.3]} 22. Bb2 {[%clk 0:01:28.7]} 22...
Nd5 {[%clk 0:02:08.5]} 23. Kf2 {[%clk 0:01:28]} 23... Nf4 {[%clk 0:01:53.2]} 24.
Nc4 {[%clk 0:01:12.2]} 24... Bh7 {[%clk 0:01:17.1]} 25. Ne3 {[%clk 0:01:11.1]}
25... c5 {[%clk 0:00:55.3]} 26. dxc5 {[%clk 0:00:54.7]} 26... Rd2+ {[%clk
0:00:55.3]} 27. Kf1 {[%clk 0:00:54.6]} 27... Nh5 {[%clk 0:00:26.8]} 28. Bc3
{[%clk 0:00:47.9]} 28... Ng3+ {[%clk 0:00:24.4]} 29. Kg1 {[%clk 0:00:47.9]}
29... Re2 {[%clk 0:00:24.9]} 30. Be5 {[%clk 0:00:39.4]} 30... Rxe1+ {[%clk
0:00:16.3]} 31. Rxe1 {[%clk 0:00:40.3]} 31... Rd8 {[%clk 0:00:17]} 32. Bd6
{[%clk 0:00:20.6]} 32... f6 {[%clk 0:00:17.1]} 33. Rd1 {[%clk 0:00:18.5]} 33...
Ne2+ {[%clk 0:00:12.5]} 34. Kf2 {[%clk 0:00:18.4]} 34... Nc3 {[%clk 0:00:13.4]}
35. Re1 {[%clk 0:00:16.6]} 35... Nb5 {[%clk 0:00:12.8]} 36. a4 {[%clk
0:00:15.7]} 36... Nxd6 {[%clk 0:00:13.4]} 37. cxd6 {[%clk 0:00:16.3]} 37... Rxd6
{[%clk 0:00:14.3]} 38. Re2 {[%clk 0:00:16.2]} 38... b5 {[%clk 0:00:13.4]} 39.
axb5 {[%clk 0:00:16.1]} 39... axb5 {[%clk 0:00:14.3]} 40. c3 {[%clk 0:00:16.4]}
40... Rd3 {[%clk 0:00:13.8]} 41. c4 {[%clk 0:00:13.6]} 41... Rxb3 {[%clk
0:00:14.1]} 42. cxb5 {[%clk 0:00:14]} 42... Rxb5 {[%clk 0:00:14.4]} 43. Rd2
{[%clk 0:00:14]} 43... Rb7 {[%clk 0:00:12.5]} 44. Ng4 {[%clk 0:00:11.8]} 44...
Bf5 {[%clk 0:00:10.9]} 45. Ne3 {[%clk 0:00:12]} 45... Bg6 {[%clk 0:00:11.2]} 46.
Nc4 {[%clk 0:00:11.9]} 46... Rc7 {[%clk 0:00:08.7]} 47. Ne3 {[%clk 0:00:12.1]}
47... Bf7 {[%clk 0:00:07.7]} 48. Rb2 {[%clk 0:00:11.9]} 48... g5 {[%clk
0:00:07.7]} 49. Rd2 {[%clk 0:00:11.4]} 49... Kg7 {[%clk 0:00:08.2]} 50. Rc2
{[%clk 0:00:11.5]} 50... Rb7 {[%clk 0:00:08.2]} 51. Rd2 {[%clk 0:00:11.4]} 51...
Bg6 {[%clk 0:00:08.4]} 52. Nc4 {[%clk 0:00:11.3]} 52... Rc7 {[%clk 0:00:07.8]}
53. Ne3 {[%clk 0:00:11.4]} 53... Be8 {[%clk 0:00:08]} 54. Rb2 {[%clk 0:00:10]}
54... Ba4 {[%clk 0:00:08]} 55. Ra2 {[%clk 0:00:08.8]} 55... Bb5 {[%clk 0:00:08]}
56. Rb2 {[%clk 0:00:09.3]} 56... Bd3 {[%clk 0:00:07.5]} 57. Rd2 {[%clk
0:00:08.8]} 57... Bg6 {[%clk 0:00:07.9]} 58. Rb2 {[%clk 0:00:07.9]} 58... Kf7
{[%clk 0:00:08.4]} 59. Rd2 {[%clk 0:00:07.2]} 59... f5 {[%clk 0:00:07.7]} 60.
Rc2 {[%clk 0:00:04.2]} 60... Rb7 {[%clk 0:00:07.6]} 61. Nc4 {[%clk 0:00:04.3]}
61... Kf6 {[%clk 0:00:06.9]} 62. Nd6 {[%clk 0:00:03.8]} 62... Rd7 {[%clk
0:00:06.3]} 63. Rc6 {[%clk 0:00:03.2]} 63... f4 {[%clk 0:00:04.6]} 64. Nc4
{[%clk 0:00:01.4]} 64... Bd3 {[%clk 0:00:03.5]} 65. Nb6 {[%clk 0:00:01.1]} 65...
Rb7 {[%clk 0:00:03.8]} 0-1